Cogmind - Beta 14 @@@ ROGUE MODE // 2024.08.20 @ 23:44:20 Player: Tyrockal Result: Destroyed by G-47 Trooper with Particle Gun Performance ------------- Evolutions (2) 1000 Regions Visited (3) 600 Robots Destroyed (50) 250 Value Destroyed (1718) 1718 Prototype IDs (1) 20 Alien Tech Used (0) 0 Bonus (0) 0 TOTAL SCORE: 3588 Bonus ------- None Cogmind --------- Core Integrity 0/550 Matter 300/300 Energy 23/100 System Corruption 0% Temperature Cool (10) Movement Walking (120) Location -8/Materials Parts ------- > --- POWER (2) -------- (None) > --- PROPULSION (3) --- Aluminum Leg > --- UTILITY (4) ------ Improved Heat Sink Cooling System Small Storage Unit > --- WEAPON (2) ------- (None) > --- INVENTORY (8) ---- Ion Engine Small Storage Unit ECM Suite Peak State ------------ > --- POWER ------------ Improved Ion Engine Light Nuclear Core > --- PROPULSION ------- Aluminum Leg Aluminum Leg Carbon-fiber Leg > --- UTILITY ---------- Small Storage Unit Improved Targeting Computer Heavy Armor Plating > --- WEAPON ----------- Field Laser Field Laser > --- INVENTORY -------- Ion Engine Cooling System Small Storage Unit ECM Suite Field Laser EM Pulse Cannon EM Pulse Cannon Rocket Launcher [Rating: 26] Favorites ----------- Power Ion Engine Engine Ion Engine Power Core Light Nuclear Core Propulsion Aluminum Leg Leg Aluminum Leg Utility Small Storage Unit Device Heat Sink Storage Small Storage Unit Processor Improved Targeting Computer Protection Heavy Armor Plating Weapon Assault Cannon Energy Gun Field Laser Energy Cannon Advanced Beam Cannon Ballistic Gun Light Assault Rifle Ballistic Cannon Assault Cannon Launcher Grenade Launcher Special Weapon Plasma Cutter Build | -11 -10 -9 -8 ------- Run | Yrd Mat Mat Mat Slots Evolved 4 | . . 2 2 Power 1 | . . 1 . Propulsion 1 | . . . 1 Utility 2 | . . 1 1 Weapon . | . . . . Parts Attached 67 | 6 13 27 21 Power 13 | 1 3 5 4 Engine 9 | 1 3 4 1 Core 4 | . . 1 3 Reactor . | . . . . Propulsion 18 | 2 3 7 6 Treads . | . . . . Leg 18 | 2 3 7 6 Wheel . | . . . . Hover . | . . . . Flight . | . . . . Utility 11 | 1 1 5 4 Device 5 | . 1 2 2 Storage 2 | 1 . . 1 Processor 1 | . . . 1 Hackware . | . . . . Protection 3 | . . 3 . Artifact . | . . . . Weapon 25 | 2 6 10 7 Energy Gun 8 | 1 1 2 4 Energy Cannon 3 | . . 1 2 Ballistic Gun 5 | 1 4 . . Ballistic Cannon 3 | . . 3 . Launcher 4 | . 1 2 1 Special Weapon 2 | . . 2 . Impact Weapon . | . . . . Slashing Weapon . | . . . . Piercing Weapon . | . . . . Special Melee Weapon . | . . . . Unidentified Prototypes 1 | . . 1 . Parts Lost 20 | . . 6 14 Power 6 | . . 3 3 Propulsion 4 | . . 1 3 Utility 4 | . . 2 2 Weapon 6 | . . . 6 Highest Loss Streak 11 | . . 2 11 To Critical Strikes . | . . . . Average Slot Usage (%) 88 | . 93 87 83 Engine 13 | . 14 13 12 Core 2 | . . 3 3 Leg 24 | . 28 21 24 Device 7 | . 8 11 2 Storage 11 | . 14 11 9 Processor 2 | . . . 8 Protection 4 | . . 5 6 Energy Gun 7 | . 10 2 13 Energy Cannon 2 | . . 4 1 Ballistic Gun 4 | . 15 1 . Ballistic Cannon 4 | . . 9 1 Launcher 2 | . 1 3 . Peak Build Rating 26 | 6 8 19 26 Average Rating 14 | 4 7 14 21 On Entrance 8 | . 6 8 19 Naked Turns . | . . . . Heaviest Build 42 | 12 17 42 42 Greatest Support 35 | 20 20 20 35 Greatest Overweight (x) 4 | 1 . 3 4 Average Overweight (x) . | . . 1 . Largest Inventory Capacity 8 | 8 8 8 8 Average Capacity 7 | 7 8 8 8 Most Carried 8 | 4 8 8 8 Average Carried 6 | 2 6 7 7 Final Capacity 8 | 8 8 8 8 Final Carried 8 | 4 8 7 3 Class Distribution -------------------- 70% | Scavenger-Mutant 29% | Mutant Dominant Class ---------------- Scavenger-Mutant | -10/Materials Scavenger-Mutant | -9/Materials Scavenger-Mutant | -8/Materials Resources | -11 -10 -9 -8 ----------- Run | Yrd Mat Mat Mat Matter Collected 1322 | 260 262 374 426 Remotely . | . . . . Salvage Created 1765 | . 566 655 544 Parts 96 | . 36 38 22 Haulers Intercepted 1 | . 1 . . Recyclers Shooed 3 | . 2 1 . Parts Field Recycled . | . . . . Retrieved Matter . | . . . . Parts Self-Destructed . | . . . . Prevented . | . . . . Kills | -11 -10 -9 -8 ------- Run | Yrd Mat Mat Mat Combat Hostiles Destroyed 41 | . 13 17 11 Guns 17 | . 12 . 5 Cannons 15 | . . 10 5 AOE 8 | . 1 6 1 Classes Destroyed 9 | . 6 2 1 Worker 1 | . . 1 . Builder 2 | . 1 1 . Hauler 1 | . 1 . . Recycler 3 | . 2 1 . Watcher 2 | . 1 1 . Swarmer 3 | . 3 . . Grunt 30 | . 10 11 9 Sentry 7 | . . 6 1 Hunter 1 | . . . 1 Best Kill Streak 5 | . 5 5 3 Combat Bots Only 3 | . 3 3 3 Max Kills in Single Turn 3 | . 2 3 1 Gunslinging . | . . . . Exploded 1 | . 1 1 1 Melee . | . . . . Uniques/NPCs Destroyed . | . . . . Combat | -11 -10 -9 -8 -------- Run | Yrd Mat Mat Mat Hostile Shots Fired 349 | . 63 109 177 Missed 101 | . 20 29 52 Damage Taken 3851 | . 538 1201 2112 Core 747 | . 66 128 553 Absorbed by Shields . | . . . . Regen/Repaired (Parts) 151 | . . 151 . Core Remaining (%) 80 | 100 73 68 . Volleys Fired 138 | . 57 43 38 Largest 2 | . 2 2 2 Hottest 133 | . 95 133 126 Shots Fired 260 | . 114 80 66 Gun 161 | . 108 8 45 Cannon 72 | . . 54 18 Launcher 21 | . 6 12 3 Special 6 | . . 6 . Kinetic 102 | . 68 34 . Thermal 119 | . 40 34 45 Explosive 21 | . 6 12 3 Electromagnetic 18 | . . . 18 Robot Hit Streak 9 | . 7 9 9 Robot Miss Streak 3 | . 3 3 2 Penetration Max . | . . . . Secondary Targets 2 | . . . 2 Max Gunslinging Chain 1 | . . . 1 Shots Hit Robots 166 | . 69 49 48 Core Hits 106 | . 42 36 28 Critical Kills 1 | . . 1 . Critical Parts Destroyed . | . . . . Critical Strikes 7 | . 1 3 3 Burn 3 | . 1 . 2 Meltdown 1 | . . 1 . Blast 1 | . . 1 . Corrupt 1 | . . . 1 Sever 1 | . . 1 . Melee Attacks . | . . . . Impact . | . . . . Slashing . | . . . . Piercing . | . . . . Sneak Attacks . | . . . . Combat Hostiles . | . . . . Follow-up Attacks . | . . . . Damage Inflicted 3887 | . 1120 1555 1212 Guns 1379 | . 789 75 515 Cannons 1246 | . . 767 479 Explosions 1195 | . 331 653 211 Melee . | . . . . Ramming 11 | . . 4 7 Kinetic 893 | . 434 459 . Thermal 1507 | . 355 585 567 Explosive 997 | . 331 507 159 Electromagnetic 479 | . . . 479 Impact . | . . . . Slashing . | . . . . Piercing . | . . . . Highest Corruption 1 | . . 1 . Average Corruption 1 | . . 1 . Corruption Purged . | . . . . Corruption Blocked . | . . . . Effects 6 | . . 6 . Message Errors 1 | . . 1 . Matter Fused 3 | . . 3 . Heat Flow Errors 1 | . . 1 . Data Loss (minor) 1 | . . 1 . Overload Shots . | . . . . Overflow Damage 85 | . 9 76 . Projectiles . | . . . . Explosions 85 | . 9 76 . Melee . | . . . . Knockbacks 5 | . . 5 . Impact . | . . . . Kinetic 5 | . . 5 . Secondary . | . . . . Self-Inflicted Damage 62 | . . 42 20 Shots 3 | . . 2 1 Rammed . | . . . . Targets Rammed 5 | . . 3 2 Kicked 5 | . . 3 2 Crushed . | . . . . Highest Temperature 535 | . 205 423 535 Average Temperature 121 | . 48 127 163 Received Heat Transfer 1881 | . 291 483 1107 Effects 13 | . . 2 11 Shutdowns 2 | . . 1 1 Energy Bleed 3 | . . . 3 Interference 6 | . . . 6 Matter Decay 1 | . . 1 . Damage (core) 1 | . . . 1 Siege Activations . | . . . . Robots Corrupted . | . . . . Combat Hostiles . | . . . . Parts Fried 1 | . . . 1 Impact Corruptions . | . . . . Robots Melted 1 | . . 1 . Combat Hostiles 1 | . . 1 . Parts Melted 6 | . . 2 4 Heat Transferred 3382 | . 999 1025 1358 Parts Sabotaged . | . . . . Parts Stolen . | . . . . Parts Stripped . | . . . . Power Chain Reactions 1 | . . . 1 Alert | -11 -10 -9 -8 ------- Run | Yrd Mat Mat Mat Peak Influence 396 | . 253 396 218 Initial 140 | . . 106 140 Average 171 | . 135 227 134 Maximum Alert Level 1 | . 1 1 1 Low Security (%) 66 | 100 75 42 95 Level 1 33 | . 24 57 4 Level 2 . | . . . . Level 3 . | . . . . Level 4 . | . . . . Level 5 . | . . . . High Security . | . . . . Max Security . | . . . . Squads Dispatched 6 | . 3 1 2 Investigation 3 | . 2 1 . Extermination . | . . . . Reinforcement 3 | . 1 . 2 Assault . | . . . . Garrison . | . . . . Intercept . | . . . . Searches Triggered . | . . . . Construction Impeded 1 | . . . 1 Haulers Reinforced . | . . . . Active Scanning Responses . | . . . . Cargo Convoy Interrupts . | . . . . Stealth | -11 -10 -9 -8 --------- Run | Yrd Mat Mat Mat Distress Signals 2 | . 1 1 . Communications Jammed . | . . . . Distress Signals . | . . . . Times Spotted 66 | . 22 25 19 Peak Tracking Total 5 | . 4 5 5 Tactical Retreats 6 | . 2 3 1 Traps | -11 -10 -9 -8 ------- Run | Yrd Mat Mat Mat Traps Triggered 3 | . 1 2 . Indirectly . | . . . . Trap Hack Attempts . | . . . . Triggered . | . . . . Disarmed . | . . . . Reprogrammed . | . . . . Reused . | . . . . Traps Extracted . | . . . . Installed . | . . . . Triggered . | . . . . Machines | -11 -10 -9 -8 ---------- Run | Yrd Mat Mat Mat Machines Disabled 5 | . . 4 1 Max in Single Turn 2 | . . 2 1 Machines Repaired . | . . . . Machines Dismantled . | . . . . Machines Sabotaged . | . . . . Overloaded Fab Kills . | . . . . Hacking | -11 -10 -9 -8 --------- Run | Yrd Mat Mat Mat Machines Accessed 7 | . 3 3 1 Terminals 4 | . 2 1 1 Fabricators . | . . . . Repair Stations 2 | . . 2 . Recycling Units 1 | . 1 . . Scanalyzers . | . . . . Garrison Access . | . . . . Total Hacks 22 | . 6 13 3 Successful 13 | . 4 7 2 Failed 9 | . 2 6 1 Catastrophic 2 | . 1 1 . Database Lockouts . | . . . . Manual . | . . . . Terminals 10 | . 5 2 3 Fabricators . | . . . . Repair Stations 11 | . . 11 . Recycling Units 1 | . 1 . . Scanalyzers . | . . . . Garrison Access . | . . . . Terminal Hacks 5 | . 3 . 2 Robot Analysis 1 | . . . 1 Emergency Access Points 1 | . . . 1 Alert Level 1 | . 1 . . Dispatch Records 1 | . 1 . . Zone Layout 1 | . 1 . . Fabricator Hacks . | . . . . Repair Station Hacks 7 | . . 7 . Scan Component 4 | . . 4 . Repair 3 | . . 3 . Recycling Unit Hacks 1 | . 1 . . Retrieve Components 1 | . 1 . . Scanalyzer . | . . . . Garrison Access Hacks . | . . . . Unauthorized Hacks . | . . . . Terminals . | . . . . Fabricators . | . . . . Repair Stations . | . . . . Recycling Units . | . . . . Scanalyzers . | . . . . Garrison Access . | . . . . Data Cores Recovered . | . . . . Used . | . . . . Hacking Detections 5 | . 2 2 1 Full Trace Events 3 | . 1 2 . Feedback Events . | . . . . Feedback Blocked . | . . . . Robot Schematics Acquired . | . . . . Robots Built . | . . . . Authchips . | . . . . Time . | . . . . Total Robot Build Rating . | . . . . Part Schematics Acquired . | . . . . Parts Built . | . . . . Authchips . | . . . . Time . | . . . . Total Part Build Rating . | . . . . Parts Repaired 3 | . . 3 . Time 93 | . . 93 . Parts Recycled . | . . . . Recycled Matter . | . . . . Retrieved Matter . | . . . . Retrieved Components 10 | . 10 . . Parts Scanalyzed . | . . . . Part Schematics Acquired . | . . . . Parts Damaged . | . . . . Bothacking | -11 -10 -9 -8 ------------ Run | Yrd Mat Mat Mat Used RIF Installer . | . . . . Robots Hacked . | . . . . Non-combat . | . . . . Combat . | . . . . Robot Hacks Applied . | . . . . Relay Couplers Released . | . . . . Fabnet Peak Effective % . | . . . . Robots Rewired . | . . . . Allies Hacked . | . . . . Hacks Repelled . | . . . . Allies | -11 -10 -9 -8 -------- Run | Yrd Mat Mat Mat Total Allies . | . . . . Largest Group . | . . . . Highest-Rated Group . | . . . . Highest-Rated Ally . | . . . . Total Orders . | . . . . Ally Attacks . | . . . . Total Damage . | . . . . Kills . | . . . . Allies Corrupted . | . . . . Allies Melted . | . . . . Intel | -11 -10 -9 -8 ------- Run | Yrd Mat Mat Mat Robot Analysis Total 1 | . . . 1 Derelict Logs Recovered . | . . . . Drone Launches . | . . . . Drone Recoveries . | . . . . Exploration | -11 -10 -9 -8 ------------- Run | Yrd Mat Mat Mat Turns Passed 3080 | 109 788 1379 804 Spaces Moved 1488 | 81 491 543 373 Core 36 | 14 . . 22 Treads . | . . . . Legs 1452 | 67 491 543 351 Wheels . | . . . . Hover . | . . . . Flight . | . . . . Fastest Speed 50 | 50 120 120 120 Average Speed 160 | 119 120 191 176 Slowest Speed 330 | 190 120 330 250 Overloaded Moves . | . . . . Propulsion Burnouts . | . . . . Robots Hopped . | . . . . Cave-ins Triggered . | . . . . Exploration Rate (%) 28 | 5 52 40 18 Regions Visited 3 Branch Regions . Pre-discovered Areas . | . . . . Known Exits Taken . | . . . . Unknown Exits Taken 3 | 1 1 1 . Scrap Searched . | . . . . Spaces Dug . | . . . . Terrain Destroyed 113 | . 3 83 27 Melee . | . . . . Projectile 4 | . . 4 . AOE 109 | . 3 79 27 Terrain Rammed . | . . . . Walls Destroyed . | . . . . Machines Disabled . | . . . . Actions | -11 -10 -9 -8 --------- Run | Yrd Mat Mat Mat Total 1925 | 90 590 790 455 Wait 156 | . . 156 . Move 1485 | 80 490 542 373 Hop . | . . . . Pick Up 35 | 4 14 8 9 Fast Attach 17 | 6 1 8 2 Attach 13 | . . 5 8 Detach . | . . . . Swap 37 | . 12 14 11 Drop 39 | . 16 11 12 Fire 138 | . 57 43 38 Melee . | . . . . Ram . | . . . . Kick 5 | . . 3 2 Crush . | . . . . Escape Stasis . | . . . . Rewire . | . . . . Trap . | . . . . Miscellaneous . | . . . . Route ------- -11/Scrapyard -10/Materials (discovered 2 exits: *Mat / [*Min]) -9/Materials -8/Materials History --------- Turn | Location | Event 18 | -11/Scrapyard | Discovered new exit (range 16) 110 | -11/Scrapyard | Entered Materials 313 | -10/Materials | Build established: Mutant 321 | -10/Materials | Discovered new exit (range 7) 721 | -10/Materials | Build established: Scavenger-Mutant 823 | -10/Materials | Discovered new exit (range 16) 898 | -10/Materials | Entered another Materials area 898 | -9/Materials | Evolved 2 slots: Power x1, Utility x1 973 | -9/Materials | Repaired Particle Gun 1912 | -9/Materials | Build established: Mutant 2053 | -9/Materials | Discovered new exit (range 16) 2150 | -9/Materials | Repaired Aluminum Leg 2203 | -9/Materials | Repaired Adv. Beam Cannon 2237 | -9/Materials | Build established: Scavenger-Mutant 2277 | -9/Materials | Entered another Materials area 2277 | -8/Materials | Evolved 2 slots: Propulsion x1, Utility x1 3018 | -8/Materials | Core integrity fell below 50% 3057 | -8/Materials | Core integrity fell below 20% 3081 | -8/Materials | Destroyed by G-47 Trooper with Particle Gun Last Messages --------------- Trooper. 03016_ Field Laser destroyed. 03018_ Lgt. Nuclear Core destroyed. 03018_ Critical hit (Burn: +37). 03018_ Lgt. Nuclear Core destroyed. 03022_ Particle Gun melted. 03022_ G-47 Trooper destroyed. 03022_ Switching to secondary target: G-50 Soldier. 03026_ Carbon-fiber Leg destroyed. 03029_ Overheating: Core damaged (-82). 03031_ Overheating: Energy bleed (-7). 03034_ Field Laser destroyed. 03038_ Overheating: System interference. 03038_ Field Laser temporarily disabled. 03042_ Field Laser destroyed. 03062_ EM Pulse Cannon destroyed. 03071_ Acquired 39 matter. 03076_ Acquired Aluminum Leg. 03077_ Acquired 10 matter. Map ----- +----------------------------------------------------+ | | | | | | | | | | | | | | | | | | | | | | | | | | | | | | | | | | | ############?????????????????????????????????????? | | [ #?????????????????????????????????????? | | ######????????????????????????????????? | | ] # #?????###########????????????????? | | !! ] # #?????# #????????????????? | | !] # ####### #????????????????? | | !] # # # #????????????????? | | ####+####### # # " """ #????????????????? | | ??# + + gg!@ """ #????????????????? | | ### ###### # #%%=" "" #????????????????? | | ####?# # # % #????????????????? | | ### ### ### #????????????????? | | !###### # # #+###+#########????????????? | | ## # #!# #????????????? | | !##"" # ### #????????????? | | !##"" ! # #????????????? | | ####### ###"T !# #????????????? | | ??????####?#"" # """ """ """ #????H???????? | | ???????????#"" # """ """ """ ??????????????? | | ???????????# # """ """ ""????????????????? | | ???????????# # ??????????????? | | ???????????# + ! ??????????????? | | ??????????# """ # ??????????????? | | ???????????# """ ##""T""# #####???????????????? | | ??????????# """ ?#"""""# #???????????????????? | | ??????????? ?####### #???????????????????? | | #??????????#######???????? +???????????????????? | | ??????????????????????????? #???????????????????? | | ??????????????????????????? #???????????????????? | | ??????????????????????????? ?????????????????????? | | ?????????????????????????????????????????????????? | | ?????????????????????????????????????????????????? | | ?????????????????????????????????????????????????? | +----------------------------------------------------+ Best States ------------- Heat Dissipation 53 Energy Generation 21 Energy Capacity 415 Matter Stores 300 Matter Capacity 300 Sight Range 16 Terrain Scan Density 10 ECM Strength 2 Armor Coverage 600 Evasion (%) 55 Targeting Accuracy 6 Item Schematics ----------------- None Robot Schematics ------------------ None Fabricated ------------ Nothing Alien Tech Used ----------------- None Achievements -------------- None Challenges ------------ None Game ------ Seed CobblerFactoryThermoblaster Manual? 0 Play Time 00:32:32 Cumulative 13.2 hours Start 2024.08.20 @ 14:21:42 End 2024.08.20 @ 23:44:20 Sessions 10 Manual Loads 0 Difficulty Rogue Special Mode None Game No. 23 Rogue 23 Adventurer 0 Explorer 0 Win Type - Total 0 Types 0/0/0/0/0/0/0/0/0 Lore% 11 Gallery% 23 Achievement% 17 Wizard Run 0 Options --------- Layout 1 ASCII 0 Keyboard 0 Movement Arrows Keybinds 0 Fullscreen 1 Font 24/Smallcaps Map View 50x40 Zoom Use 0% Tactical HUD 1 Map Filters NONE Filters NONE Steam 1 RUN: f4717e68-40e4-4bd2-ac43-628a4ebd7416